Cogmind - Beta 16.1 @@@ ROGUE MODE // 2026.03.31 @ 14:04:28 // Winter2022/Polymind Player: Minty Result: Destroyed by Tracker with Linked Autogun Performance ------------- Evolutions (9) 4500 Regions Visited (16) 3200 Robots Destroyed (237) 1185 Value Destroyed (12994) 12994 Prototype IDs (32) 640 Alien Tech Used (0) 0 Bonus (14587) 14587 TOTAL SCORE: 36946 Bonus ------- Polymind Skill 6956 Triggered High Security 500 High Alert Combat Kills 3250 Follower Combat Kills 181 Entered Garrisons 200 Found Hidden Lab 3000 Pursued by Intercept 500 Cogmind --------- Core Integrity 0/1600 Matter 0/0 Energy 274/300 System Corruption 6% Temperature Cool (0) Movement Core (500) Ox9 Location -1/Access Parts ------- > --- POWER (1) -------- Micro Antimatter Reactor > --- PROPULSION (3) --- Improved Antigrav System Improved Antigrav System > --- UTILITY (5) ------ Advanced Heat Sink Advanced Heat Sink Small Battery Small Battery Advanced Target Analyzer > --- WEAPON (3) ------- Gamma Rifle Gamma Rifle Advanced Remote Datajack > --- INVENTORY (5) ---- (None) Peak State ------------ > --- POWER ------------ Zero-point Reactor Zero-point Reactor > --- PROPULSION ------- Heavy Armored Exoskeleton > --- UTILITY ---------- Experimental Cryofiber Web Coolant Network Experimental Energy Well Advanced Quantum Shading Machine Experimental Targeting Computer Advanced Particle Accelerator VL-GR5's Timing Chip Experimental Core Shielding Experimental Utility Shielding Heavy Regenerative Plating Graphene Brace Experimental Shield Generator Advanced Corruption Screen Advanced Corruption Screen VL-GR5's Exoskeleton "Deathgrip" > --- WEAPON ----------- Enhanced Nova Cannon Enhanced Nova Cannon Enhanced Nova Cannon > --- INVENTORY -------- (None) [Rating: 228] Favorites ----------- Power Reinforced Antimatter Reactor Engine Improved Ion Engine Power Core Light Nuclear Core Reactor Reinforced Antimatter Reactor Propulsion Tripod Weapons Platform Treads Light Treads Leg Tripod Weapons Platform Hover Unit Antigrav Array Flight Unit Xenon Bombardment Thruster Utility Experimental Cooling System Device Experimental Cooling System Storage Experimental Energy Well Processor Advanced Corruption Screen Hackware Experimental Hacking Suite Protection Centrium Heavy Armor Plating Weapon Wave Gun Energy Gun Wave Gun Energy Cannon Enhanced Nova Cannon Ballistic Gun Heavy Assault Rifle Ballistic Cannon Heavy Linear Accelerator Special Weapon Advanced Remote Datajack Slashing Weapon Power Sword Build | -11 -10 -10 -9 -8 -7 -7 -7 -5 -5 -5 -4 -3 -3 -3 -2 -1 ------- Run | Yrd Mat Min Mat Mat Fac Sto Rec Fac Gar Fac Fac Res Arm Lab Res Acc Slots Evolved . | . . . . . . . . . . . . . . . . . Power . | . . . . . . . . . . . . . . . . . Propulsion . | . . . . . . . . . . . . . . . . . Utility . | . . . . . . . . . . . . . . . . . Weapon . | . . . . . . . . . . . . . . . . . Parts Attached . | . . . . . . . . . . . . . . . . . Power . | . . . . . . . . . . . . . . . . . Engine . | . . . . . . . . . . . . . . . . . Core . | . . . . . . . . . . . . . . . . . Reactor . | . . . . . . . . . . . . . . . . . Propulsion . | . . . . . . . . . . . . . . . . . Treads . | . . . . . . . . . . . . . . . . . Leg . | . . . . . . . . . . . . . . . . . Wheel . | . . . . . . . . . . . . . . . . . Hover . | . . . . . . . . . . . . . . . . . Flight . | . . . . . . . . . . . . . . . . . Utility . | . . . . . . . . . . . . . . . . . Device . | . . . . . . . . . . . . . . . . . Storage . | . . . . . . . . . . . . . . . . . Processor . | . . . . . . . . . . . . . . . . . Hackware . | . . . . . . . . . . . . . . . . . Protection . | . . . . . . . . . . . . . . . . . Artifact . | . . . . . . . . . . . . . . . . . Weapon . | . . . . . . . . . . . . . . . . . Energy Gun . | . . . . . . . . . . . . . . . . . Energy Cannon . | . . . . . . . . . . . . . . . . . Ballistic Gun . | . . . . . . . . . . . . . . . . . Ballistic Cannon . | . . . . . . . . . . . . . . . . . Launcher . | . . . . . . . . . . . . . . . . . Special Weapon . | . . . . . . . . . . . . . . . . . Impact Weapon . | . . . . . . . . . . . . . . . . . Slashing Weapon . | . . . . . . . . . . . . . . . . . Piercing Weapon . | . . . . . . . . . . . . . . . . . Special Melee Weapon . | . . . . . . . . . . . . . . . . . Unidentified Prototypes . | . . . . . . . . . . . . . . . . . Parts Lost 45 | . . . 6 . . . . . . . . 2 3 . 12 22 Power 5 | . . . 1 . . . . . . . . . . . 1 3 Propulsion 13 | . . . 2 . . . . . . . . . . . 2 9 Utility 13 | . . . 2 . . . . . . . . 1 1 . 5 4 Weapon 14 | . . . 1 . . . . . . . . 1 2 . 4 6 Highest Loss Streak 11 | . . . 3 . . . . . . . . 2 2 . 7 11 To Critical Strikes . | . . . . . . . . . . . . . . . . . Average Backups . | . . . . . . . . . . . . . . . . . Power . | . . . . . . . . . . . . . . . . . Propulsion . | . . . . . . . . . . . . . . . . . Utility . | . . . . . . . . . . . . . . . . . Weapon . | . . . . . . . . . . . . . . . . . Tool/Special . | . . . . . . . . . . . . . . . . . Unused Backups 1 | . . . . . . . . . . . . . . 1 . . Power . | . . . . . . . . . . . . . . . . . Propulsion . | . . . . . . . . . . . . . . . . . Utility 1 | . . . . . . . . . . . . . . 1 . . Weapon . | . . . . . . . . . . . . . . . . . Tool/Special . | . . . . . . . . . . . . . . . . . Average Slot Usage (%) 77 | . . 91 81 40 33 87 87 87 87 84 79 71 76 79 78 82 Engine 1 | . . . 10 7 . . . . . . . . . . . . Core 1 | . . 18 1 . . . . . . . . . . . . . Reactor 4 | . . . . . 1 4 4 4 4 4 4 4 6 5 5 9 Treads 3 | . . . 20 16 . . . . . . . . . . 3 2 Leg 6 | . . 36 5 . 1 4 4 4 4 4 4 4 2 1 5 7 Flight 1 | . . . . . . . . . . . . . . . 2 9 Device 30 | . . 18 20 7 19 50 50 50 50 46 41 41 25 29 26 18 Processor 4 | . . . . . . . . . . . . . 14 7 8 9 Protection 5 | . . . 2 . 3 8 8 8 8 8 8 5 8 10 5 1 Energy Gun 10 | . . 18 9 . 7 20 20 20 20 20 20 16 . 7 4 1 Energy Cannon 1 | . . . . . . . . . . . . . 10 1 . . Ballistic Gun 3 | . . . 10 7 . . . . . . . . . . 7 13 Peak Build Rating 228 | . . 10 11 7 188 188 188 188 188 188 179 170 228 204 166 159 Average Rating 127 | . . 9 8 4 68 188 188 188 188 181 172 159 222 177 123 83 On Entrance 108 | . . . 10 7 . 188 188 188 188 188 179 170 151 204 166 24 Avg Prop Armor Cover (%) 4 | . . . . . . . . . . . . . . . . 4 Naked Turns 311 | . 60 45 1 87 75 . . . . . . . 7 2 9 25 Heaviest Build 111 | . . 9 18 11 99 99 99 99 99 99 97 92 111 84 96 96 Greatest Support 120 | 3 3 20 40 40 90 90 90 90 90 90 90 90 115 115 120 120 Greatest Overweight (x) 2 | . . . 1 . 1 1 1 1 1 1 1 1 . . . 2 Average Overweight (x) . | . . . . . . 1 1 1 1 1 1 . . . . . Largest Inventory Capacity 5 | . . 1 1 1 1 1 1 1 1 1 1 1 1 1 1 5 Average Capacity . | . . . . . . 1 1 1 1 1 1 1 . . . 1 Most Carried 1 | . . . . . . . . . . . . . 1 1 . . Average Carried . | . . . . . . . . . . . . . . . . . Final Capacity 5 | . . 1 1 . 1 1 1 1 1 1 1 1 1 1 . 5 Final Carried 1 | . . . . . . . . . . . . . 1 . . . Class Distribution -------------------- 49% | Grunt 15% | Specialist 10% | Sentry 7% | Heavy 5% | Hunter 4% | Cogmind Dominant Class ---------------- Cogmind | -10/Materials Grunt | -10/Mines Sentry | -9/Materials Sentry | -8/Materials Cogmind | -7/Factory Grunt | -7/Storage Grunt | -7/Recycling Grunt | -5/Factory Grunt | -5/Garrison Grunt | -5/Factory Grunt | -4/Factory Grunt | -3/Research Specialist | -3/Armory Perun | -3/Lab Heavy | -2/Research Heavy | -1/Access Resources | -11 -10 -10 -9 -8 -7 -7 -7 -5 -5 -5 -4 -3 -3 -3 -2 -1 ----------- Run | Yrd Mat Min Mat Mat Fac Sto Rec Fac Gar Fac Fac Res Arm Lab Res Acc Matter Collected 1831 | . . . 41 26 . . . . . . . . . . 637 1127 Remotely . | . . . . . . . . . . . . . . . . . Salvage Created 11038 | . . 114 216 . . 56 409 131 526 77 712 2533 4025 . 956 1283 Parts 501 | . . 7 16 . . 2 17 2 39 7 39 100 169 . 55 48 Haulers Intercepted 1 | . . . . . . . . . . . . . . . 1 . Recyclers Shooed 9 | . . . . . . 1 . . . . 2 3 . . 2 1 Parts Field Recycled . | . . . . . . . . . . . . . . . . . Retrieved Matter . | . . . . . . . . . . . . . . . . . Parts Self-Destructed . | . . . . . . . . . . . . . . . . . Prevented . | . . . . . . . . . . . . . . . . . Parts Restored . | . . . . . . . . . . . . . . . . . Kills | -11 -10 -10 -9 -8 -7 -7 -7 -5 -5 -5 -4 -3 -3 -3 -2 -1 ------- Run | Yrd Mat Min Mat Mat Fac Sto Rec Fac Gar Fac Fac Res Arm Lab Res Acc Combat Hostiles Destroyed 205 | . . 3 10 . 1 2 6 2 17 5 16 36 70 . 12 25 Melee 4 | . . . . . . . . . . . . . . . 1 3 Guns 102 | . . 3 10 . 1 2 6 2 16 3 14 29 . . 7 9 Cannons 79 | . . . . . . . . . . . . . 63 . 3 13 AOE 1 | . . . . . . . . . . . . 1 . . . . Classes Destroyed 20 | . . 2 2 . . . 3 . 3 1 . . 7 . 1 1 Worker 9 | . . 1 . . . . . . . . . 1 . . 6 1 Builder 14 | . . . . . . . 1 . . . 1 3 . . 8 1 Hauler 1 | . . . . . . . . . . . . . . . 1 . Recycler 2 | . . . . . . . . . . . . . . . . 2 Carrier 2 | . . . . . . . . . . . . . 2 . . . Mechanic 1 | . . . . . . . . . . . . . 1 . . . Watcher 2 | . . . . . . . . . . . . . 1 . 1 . Swarmer 41 | . . . 3 . . . 1 2 4 . 4 4 13 . . 10 Saboteur 2 | . . . . . . . . . . . . . 2 . . . Grunt 80 | . . 3 6 . . 2 1 1 7 4 5 13 33 . 1 4 Brawler 6 | . . . . . . . 1 . . . . . 5 . . . Duelist 7 | . . . . . . . 1 . . . . 1 4 . . 1 Protector 1 | . . . . . . . . . . . . . 1 . . . Sentry 17 | . . . 1 . 1 . 2 . . . 2 4 2 . 1 4 Demolisher 4 | . . . . . . . . . . . . . 4 . . . Specialist 2 | . . . . . . . . . . . . . 2 . . . Hunter 16 | . . . . . . . . . 2 . . 2 4 . 5 3 Programmer 27 | . . . . . . . . . 3 . 5 11 . . 5 3 Heavy 1 | . . . . . . . . . . 1 . . . . . . Behemoth 2 | . . . . . . . . . 1 . . 1 . . . . Best Kill Streak 16 | . . 2 3 . 1 2 3 1 8 3 6 6 16 . 16 8 Combat Bots Only 15 | . . 2 3 . 1 2 3 1 8 3 6 6 15 . 5 7 Max Kills in Single Turn 3 | . . 1 1 . 1 1 2 2 2 1 1 1 3 . 3 1 Gunslinging 1 | . . . . . . . 1 1 1 . . . . . 1 . Exploded 1 | . . . . . . . . . . . . 1 . . . . Melee 1 | . . . . . . . . . . . . . . . 1 1 Uniques/NPCs Destroyed . | . . . . . . . . . . . . . . . . . Combat | -11 -10 -10 -9 -8 -7 -7 -7 -5 -5 -5 -4 -3 -3 -3 -2 -1 -------- Run | Yrd Mat Min Mat Mat Fac Sto Rec Fac Gar Fac Fac Res Arm Lab Res Acc Hostile Shots Fired 1662 | . . 19 94 1 . 5 28 2 117 18 43 196 335 3 378 423 Missed 489 | . . 4 20 . . 1 10 1 30 6 10 62 114 1 119 111 Hits 1173 | . . 15 74 1 . 4 18 1 87 12 33 134 221 2 259 312 Melee 22 | . . . . . . . 1 . . . . . 17 . . 4 Projectile 1151 | . . 15 74 1 . 4 17 1 87 12 33 134 204 2 259 308 AOE 18 | . . . . . . . . . 1 . . . 17 . . . Critical Strikes 41 | . . . . . . . 1 . 2 2 3 8 8 . 6 11 Actively Blocked 19 | . . . . . . . . . 1 1 . . 8 . 4 5 Part Disruptions 1 | . . . . . . . . . . . . . . . . 1 Damage Taken 19221 | . . 213 900 14 . 78 115 11 464 215 196 1539 3872 8 4941 6655 Core 3028 | . . 67 167 14 . 42 2 . 66 . 12 51 138 . 846 1623 Absorbed by Shields 2168 | . . . . . . . . 5 258 67 100 . 1426 4 308 . Reduced by Siege Mode 86 | . . . . . . . . . . . . . . . 31 55 Redirected to Shielding 578 | . . . . . . 13 8 . 38 4 6 81 255 . 79 94 Ignored by Resistances 4657 | . . . . . . 30 109 16 935 200 392 1643 . 41 771 520 Regen/Repaired (Parts) 938 | . . . . . . . . . . . . . 861 33 44 . Core Remaining (%) 82 | 100 . 73 58 97 . . 93 . . 93 98 . . 85 41 . Volleys Fired 472 | . . 19 45 . 1 3 10 2 19 9 22 76 95 3 61 107 Largest 5 | . . 1 2 . 5 5 5 5 5 5 5 5 3 1 3 3 Hottest 419 | . . 65 79 . 419 419 419 419 419 419 419 419 360 120 210 150 Shots Fired 1287 | . . 19 64 . 5 15 50 10 95 45 104 300 283 3 115 179 Gun 936 | . . 19 64 . 5 15 50 10 95 45 104 300 . . 89 140 Cannon 351 | . . . . . . . . . . . . . 283 3 26 39 Launcher . | . . . . . . . . . . . . . . . . . Special . | . . . . . . . . . . . . . . . . . Kinetic 280 | . . . 28 . . . . . . . . . . . 97 155 Thermal 965 | . . 19 36 . 5 15 50 10 95 45 104 300 283 3 . . Explosive . | . . . . . . . . . . . . . . . . . Electromagnetic 42 | . . . . . . . . . . . . . . . 18 24 Robot Hit Streak 51 | . . 3 13 . 18 30 51 23 46 20 43 29 20 . 12 10 Robot Miss Streak 5 | . . 2 2 . . . 1 . 1 1 2 3 3 . 5 3 Penetration Max 1 | . . . . . . . . . . . . . . . 1 1 Secondary Targets 64 | . . . 1 . . 1 3 1 8 . 4 9 31 . 3 3 Max Gunslinging Chain 2 | . . . 1 . . 1 1 1 1 . 1 1 2 . 1 1 Shots Hit Robots 939 | . . 12 44 . 5 12 36 8 78 36 79 231 188 . 77 133 Core Hits 387 | . . 6 14 . 2 4 14 4 32 9 34 87 83 . 48 50 Critical Kills 7 | . . . . . . . . . . . . . 6 . 1 . Critical Parts Destroyed 1 | . . . . . . . . . . . . . . . 1 . Critical Strikes 40 | . . 1 2 . . . 5 1 2 . 3 10 6 . 5 5 Burn 24 | . . 1 2 . . . 5 1 2 . 3 10 . . . . Meltdown 6 | . . . . . . . . . . . . . 6 . . . Destroy 2 | . . . . . . . . . . . . . . . 2 . Blast 4 | . . . . . . . . . . . . . . . 3 1 Corrupt 2 | . . . . . . . . . . . . . . . . 2 Sever 2 | . . . . . . . . . . . . . . . . 2 Melee Attacks 9 | . . . . . . . . . . . . . . . . 9 Impact . | . . . . . . . . . . . . . . . . . Slashing 9 | . . . . . . . . . . . . . . . . 9 Piercing . | . . . . . . . . . . . . . . . . . Sneak Attacks 1 | . . . . . . . . . . . . . . . . 1 Combat Hostiles 1 | . . . . . . . . . . . . . . . . 1 Follow-up Attacks . | . . . . . . . . . . . . . . . . . Damage Inflicted 35202 | . . 199 744 . 123 341 955 197 2122 890 2243 6355 12281 . 3479 5273 Guns 17974 | . . 191 728 . 123 318 914 197 2093 890 2189 6097 . . 1851 2383 Cannons 16250 | . . . . . . . . . . . . . 12258 . 1468 2524 Explosions . | . . . . . . . . . . . . . . . . . Melee 342 | . . . . . . . . . . . . . . . . 342 Ramming 636 | . . 8 16 . . 23 41 . 29 . 54 258 23 . 160 24 Kinetic 7963 | . . . 297 . . . . . . . . . . . 3021 4645 Thermal 25701 | . . 191 431 . 123 318 914 197 2093 890 2189 6097 12258 . . . Explosive . | . . . . . . . . . . . . . . . . . Electromagnetic 560 | . . . . . . . . . . . . . . . 298 262 Impact . | . . . . . . . . . . . . . . . . . Slashing 342 | . . . . . . . . . . . . . . . . 342 Piercing . | . . . . . . . . . . . . . . . . . Highest Corruption 6 | . . . . . . . . . . . . . . . 5 6 Average Corruption 3 | . . . . . . . . . . . . . . . 1 4 Corruption Purged . | . . . . . . . . . . . . . . . . . Corruption Blocked 1 | . . . . . . . . . . . . . . 1 . . Effects 23 | . . . . . . . . . . . . . . . 8 15 Message Errors 5 | . . . . . . . . . . . . . . . 3 2 Matter Fused 2 | . . . . . . . . . . . . . . . . 2 Heat Flow Errors 4 | . . . . . . . . . . . . . . . . 4 Energy Discharges 3 | . . . . . . . . . . . . . . . 1 2 Parts Fused 1 | . . . . . . . . . . . . . . . 1 . Data Loss (minor) 4 | . . . . . . . . . . . . . . . 1 3 Data Loss (major) 1 | . . . . . . . . . . . . . . . 1 . Weapon Failures 3 | . . . . . . . . . . . . . . . 1 2 Overload Shots . | . . . . . . . . . . . . . . . . . Overflow Damage 1222 | . . . . . . . . . 3 . . 21 522 . 144 532 Projectiles 1194 | . . . . . . . . . . . . . 522 . 140 532 Explosions . | . . . . . . . . . . . . . . . . . Melee 28 | . . . . . . . . . 3 . . 21 . . 4 . Knockbacks 18 | . . . . . . 1 1 . . . . 1 . . 7 8 Impact 3 | . . . . . . 1 1 . . . . 1 . . . . Kinetic 13 | . . . . . . . . . . . . . . . 6 7 Secondary 2 | . . . . . . . . . . . . . . . 1 1 Self-Inflicted Damage 31 | . . . . . . 14 . . . . . . . . 17 . Shots . | . . . . . . . . . . . . . . . . . Rammed 24 | . . . 3 . . . . . . . . . . . 17 4 Targets Rammed 69 | . . 1 3 . . 2 2 . 4 . 6 20 2 . 21 8 Kicked 42 | . . 1 . . . 2 2 . 4 . 6 20 2 . 3 2 Crushed 3 | . . . . . . . . . . . . . . . 1 2 Highest Temperature 272 | . . 83 29 . . . . . 86 . 272 198 . . 48 240 Average Temperature 49 | . . 45 12 . . . . . 64 . 130 94 . . 16 53 Received Heat Transfer 2303 | . . 123 387 . . 36 30 10 114 29 95 506 494 . 110 369 Siege Activations 2 | . . . . . . . . . . . . . . . 1 1 Total Turns 34 | . . . . . . . . . . . . . . . 23 11 Longest Duration 23 | . . . . . . . . . . . . . . . 23 11 Martial Activations . | . . . . . . . . . . . . . . . . . Shielding Activations . | . . . . . . . . . . . . . . . . . Robots Disrupted . | . . . . . . . . . . . . . . . . . Combat Hostiles . | . . . . . . . . . . . . . . . . . Robots Corrupted 3 | . . . . . . . . . 1 . . . . . 2 . Combat Hostiles 2 | . . . . . . . . . 1 . . . . . 1 . Parts Fried 13 | . . . . . . . . . 3 . . 2 . . 6 2 Impact Corruptions 3 | . . . . . . . . . 1 . . 1 . . 1 . Robots Melted 18 | . . . . . . . . . . 2 2 6 8 . . . Combat Hostiles 17 | . . . . . . . . . . 2 2 6 7 . . . Parts Melted 103 | . . . 3 . 1 1 3 . 8 8 17 37 25 . . . Heat Transferred 27513 | . . 518 1184 . 185 444 1338 334 3108 1332 3330 9435 6305 . . . Parts Sabotaged . | . . . . . . . . . . . . . . . . . Parts Stolen . | . . . . . . . . . . . . . . . . . Parts Stripped . | . . . . . . . . . . . . . . . . . Power Chain Reactions . | . . . . . . . . . . . . . . . . . Alert | -11 -10 -10 -9 -8 -7 -7 -7 -5 -5 -5 -4 -3 -3 -3 -2 -1 ------- Run | Yrd Mat Min Mat Mat Fac Sto Rec Fac Gar Fac Fac Res Arm Lab Res Acc Maximum Alert Level 5 | . . . . . . . . . 1 1 1 2 5 . 2 3 Low Security (%) 48 | 100 100 100 100 100 100 100 100 100 41 52 57 9 . . 54 4 Level 1 22 | . . . . . . . . . 58 47 42 45 14 . 32 28 Level 2 15 | . . . . . . . . . . . . 45 7 . 12 47 Level 3 8 | . . . . . . . . . . . . . 38 . . 20 Level 4 3 | . . . . . . . . . . . . . 24 . . . Level 5 1 | . . . . . . . . . . . . . 7 . . . High Security 1 | . . . . . . . . . . . . . 8 . . . Max Security . | . . . . . . . . . . . . . . . . . Peak Influence 1907 | . . 40 111 2 30 43 66 76 360 284 340 656 1907 . 432 798 Initial 340 | . . . . 2 . 9 8 64 28 189 133 161 340 . . 256 Average 336 | . . 4 42 . 8 16 20 49 228 210 194 402 1037 . 173 505 Influence Increases 6568 | . . 75 295 . 47 44 165 146 392 145 397 943 2050 . 760 1109 Destroy 0b10 Robot/C 4220 | . . 60 200 . 20 40 120 80 340 100 320 720 1480 . 240 500 Destroy 0b10 Robot/NC 160 | . . 5 . . . . 15 . . . 5 20 15 . 80 20 Destroy Leader 728 | . . 10 40 . 10 . . . 30 30 70 160 204 . 54 120 Allied During Kill 88 | . . . . . . . 11 16 12 . . . 49 . . . Successful Hack 61 | . . . 9 . 17 . 11 . . . . 24 . . . . Disable Machine 330 | . . . 30 . . . . . . . . . 195 . 30 75 Destroy Structure 181 | . . . 1 . . 4 8 . 10 . 2 4 92 . 21 39 Advance Influence 50 | . . . . . . . . 50 . . . . . . . . Partial Spotted 45 | . . . . . . . . . . . . 15 . . 15 15 Lose Combat Pursuer 405 | . . . 15 . . . . . . 15 . . 15 . 120 240 Active Sensor Use 300 | . . . . . . . . . . . . . . . 200 100 Influence Decreases 5785 | . . 75 288 7 27 41 153 141 72 231 363 601 811 1889 332 754 Entered New Map 2894 | . . . . 5 . 11 15 21 12 171 141 147 310 1889 . 172 Time Decay 2296 | . . 75 248 2 27 30 138 110 . 60 222 434 398 . 190 362 Lost Part 430 | . . . 40 . . . . . . . . 20 30 . 120 220 Lost Ally 110 | . . . . . . . . 10 60 . . . 40 . . . Miscellaneous 55 | . . . . . . . . . . . . . 33 . 22 . Squads Dispatched 46 | . . . 2 1 2 1 . 1 . 2 2 7 8 . 8 12 Investigation 11 | . . . 1 . . . . . . . . 2 3 . 2 3 Extermination 8 | . . . . . . . . . . . 1 4 . . 2 1 Reinforcement 16 | . . . 1 1 1 1 . 1 . 2 1 1 2 . 4 1 Assault 4 | . . . . . . . . . . . . . 3 . . 1 Garrison 6 | . . . . . 1 . . . . . . . . . . 5 Intercept 1 | . . . . . . . . . . . . . . . . 1 Searches Triggered . | . . . . . . . . . . . . . . . . . Construction Impeded 1 | . . . . . . . . . . . . . . . 1 . Haulers Reinforced 1 | . . . . . . . . . . . . 1 . . . . Active Scanning Responses 3 | . . . . . . . . . . . . . . . 2 1 Cargo Convoy Interrupts . | . . . . . . . . . . . . . . . . . Stealth | -11 -10 -10 -9 -8 -7 -7 -7 -5 -5 -5 -4 -3 -3 -3 -2 -1 --------- Run | Yrd Mat Min Mat Mat Fac Sto Rec Fac Gar Fac Fac Res Arm Lab Res Acc Distress Signals 12 | . . . . 1 . . 1 . . . 1 . 3 . 2 4 Communications Jammed 20 | . . . . . . . . . . . . . . . 15 5 Distress Signals 20 | . . . . . . . . . . . . . . . 15 5 Times Spotted 364 | . . 5 18 1 2 4 7 4 17 7 19 49 90 1 61 79 Peak Tracking Total 14 | . . 2 3 1 2 2 4 4 6 3 8 7 8 1 14 9 Tactical Retreats 16 | . . . 1 . . . . . . 1 . . 1 . 6 7 Traps | -11 -10 -10 -9 -8 -7 -7 -7 -5 -5 -5 -4 -3 -3 -3 -2 -1 ------- Run | Yrd Mat Min Mat Mat Fac Sto Rec Fac Gar Fac Fac Res Arm Lab Res Acc Traps Triggered 14 | . 1 . 1 . . . . . 4 . 1 5 1 . 1 . Indirectly . | . . . . . . . . . . . . . . . . . Trap Hack Attempts . | . . . . . . . . . . . . . . . . . Triggered . | . . . . . . . . . . . . . . . . . Disarmed . | . . . . . . . . . . . . . . . . . Reprogrammed . | . . . . . . . . . . . . . . . . . Reused . | . . . . . . . . . . . . . . . . . Traps Extracted . | . . . . . . . . . . . . . . . . . Installed . | . . . . . . . . . . . . . . . . . Triggered . | . . . . . . . . . . . . . . . . . Machines | -11 -10 -10 -9 -8 -7 -7 -7 -5 -5 -5 -4 -3 -3 -3 -2 -1 ---------- Run | Yrd Mat Min Mat Mat Fac Sto Rec Fac Gar Fac Fac Res Arm Lab Res Acc Machines Disabled 22 | . . . 2 . . . . . . . . . 13 . 2 5 Max in Single Turn 1 | . . . 1 . . . . . . . . . 1 . 1 1 Machines Repaired . | . . . . . . . . . . . . . . . . . Machines Dismantled . | . . . . . . . . . . . . . . . . . Machines Sabotaged . | . . . . . . . . . . . . . . . . . Overloaded Fab Kills . | . . . . . . . . . . . . . . . . . Hacking | -11 -10 -10 -9 -8 -7 -7 -7 -5 -5 -5 -4 -3 -3 -3 -2 -1 --------- Run | Yrd Mat Min Mat Mat Fac Sto Rec Fac Gar Fac Fac Res Arm Lab Res Acc Machines Accessed 14 | . . . 2 . 1 . 2 1 . . . 2 3 . 1 2 Terminals 10 | . . . 2 . 1 . 2 . . . . 1 3 . 1 . Fabricators 1 | . . . . . . . . . . . . . . . . 1 Repair Stations . | . . . . . . . . . . . . . . . . . Recycling Units . | . . . . . . . . . . . . . . . . . Scanalyzers 1 | . . . . . . . . . . . . 1 . . . . Garrison Access 2 | . . . . . . . . 1 . . . . . . . 1 Total Hacks 34 | . . . 5 . 5 . 4 1 . . . 5 8 . 2 4 Successful 9 | . . . 2 . 3 . 2 1 . . . 1 . . . . Failed 24 | . . . 3 . 2 . 2 . . . . 3 8 . 2 4 Catastrophic 5 | . . . . . . . . . . . . 1 . . 1 3 Database Lockouts 1 | . . . . . . . . . . . . 1 . . . . Manual 12 | . . . . . 1 1 3 . . . . 2 3 . 2 . Terminals 26 | . . . 5 . 5 . 4 . . . . 2 8 . 2 . Fabricators 2 | . . . . . . . . . . . . . . . . 2 Repair Stations . | . . . . . . . . . . . . . . . . . Recycling Units . | . . . . . . . . . . . . . . . . . Scanalyzers 3 | . . . . . . . . . . . . 3 . . . . Garrison Access 3 | . . . . . . . . 1 . . . . . . . 2 Terminal Hacks 6 | . . . 2 . 2 . 2 . . . . . . . . . Robot Analysis 2 | . . . . . 1 . 1 . . . . . . . . . Emergency Access Points 1 | . . . 1 . . . . . . . . . . . . . Terminal Index 1 | . . . . . . . 1 . . . . . . . . . Zone Layout 2 | . . . 1 . 1 . . . . . . . . . . . Fabricator Hacks . | . . . . . . . . . . . . . . . . . Repair Station Hacks . | . . . . . . . . . . . . . . . . . Recycling Unit Hacks . | . . . . . . . . . . . . . . . . . Scanalyzer 1 | . . . . . . . . . . . . 1 . . . . Retrieve Study 1 | . . . . . . . . . . . . 1 . . . . Garrison Access Hacks 1 | . . . . . . . . 1 . . . . . . . . Unlock Access 1 | . . . . . . . . 1 . . . . . . . . Unauthorized Hacks 1 | . . . . . 1 . . . . . . . . . . . Terminals 1 | . . . . . 1 . . . . . . . . . . . Botnet 1 | . . . . . 1 . . . . . . . . . . . Fabricators . | . . . . . . . . . . . . . . . . . Repair Stations . | . . . . . . . . . . . . . . . . . Recycling Units . | . . . . . . . . . . . . . . . . . Scanalyzers . | . . . . . . . . . . . . . . . . . Garrison Access . | . . . . . . . . . . . . . . . . . Data Cores Recovered . | . . . . . . . . . . . . . . . . . Used . | . . . . . . . . . . . . . . . . . Hacking Detections 13 | . . . 2 . 1 . 2 . . . . 2 3 . 1 2 Full Trace Events 8 | . . . 1 . . . 1 . . . . 2 2 . . 2 Feedback Events 1 | . . . . . . . . . . . . . . . . 1 Corruption 1 | . . . . . . . . . . . . . . . . 1 Feedback Blocked . | . . . . . . . . . . . . . . . . . Robot Schematics Acquired . | . . . . . . . . . . . . . . . . . Robots Built . | . . . . . . . . . . . . . . . . . Authchips . | . . . . . . . . . . . . . . . . . Time . | . . . . . . . . . . . . . . . . . Total Robot Build Rating . | . . . . . . . . . . . . . . . . . Part Schematics Acquired . | . . . . . . . . . . . . . . . . . Parts Built . | . . . . . . . . . . . . . . . . . Authchips . | . . . . . . . . . . . . . . . . . Time . | . . . . . . . . . . . . . . . . . Total Part Build Rating . | . . . . . . . . . . . . . . . . . Part Studies Acquired 1 | . . . . . . . . . . . . 1 . . . . Parts Repaired . | . . . . . . . . . . . . . . . . . Time . | . . . . . . . . . . . . . . . . . Parts Recycled . | . . . . . . . . . . . . . . . . . Recycled Matter . | . . . . . . . . . . . . . . . . . Retrieved Matter . | . . . . . . . . . . . . . . . . . Retrieved Components . | . . . . . . . . . . . . . . . . . Parts Scanalyzed . | . . . . . . . . . . . . . . . . . Part Schematics Acquired . | . . . . . . . . . . . . . . . . . Parts Damaged . | . . . . . . . . . . . . . . . . . Bothacking | -11 -10 -10 -9 -8 -7 -7 -7 -5 -5 -5 -4 -3 -3 -3 -2 -1 ------------ Run | Yrd Mat Min Mat Mat Fac Sto Rec Fac Gar Fac Fac Res Arm Lab Res Acc Used RIF Installer . | . . . . . . . . . . . . . . . . . Robots Hacked 10 | . . 1 1 . . . . . . . . . . . 3 5 Non-combat . | . . . . . . . . . . . . . . . . . Combat 10 | . . 1 1 . . . . . . . . . . . 3 5 Robot Hacks Applied 18 | . . 1 1 . . . . . . . . . . . 6 10 find_shortcuts 10 | . . 1 1 . . . . . . . . . . . 3 5 find_garrison 8 | . . . . . . . . . . . . . . . 3 5 Relay Couplers Released . | . . . . . . . . . . . . . . . . . Fabnet Peak Effective % . | . . . . . . . . . . . . . . . . . Robots Rewired 10 | . . . . . . . 8 . . . . . 2 . . . Allies Hacked 3 | . . . . . . . . . 3 . . . . . . . Hacks Repelled . | . . . . . . . . . . . . . . . . . Allies | -11 -10 -10 -9 -8 -7 -7 -7 -5 -5 -5 -4 -3 -3 -3 -2 -1 -------- Run | Yrd Mat Min Mat Mat Fac Sto Rec Fac Gar Fac Fac Res Arm Lab Res Acc Total Allies 10 | . . . . . . . 8 . . . . . 2 . . . Largest Group 8 | . . . . . . . 8 8 6 1 1 . 2 . . . Highest-Rated Group 164 | . . . . . . . 164 164 144 40 40 . 104 . . . Highest-Rated Ally 56 | . . . . . . . 40 40 40 40 40 . 56 . . . Total Orders 1 | . . . . . . . . . . . . . 1 . . . STAY 1 | . . . . . . . . . . . . . 1 . . . Ally Attacks 47 | . . . . . . . 4 10 1 . . . 32 . . . Total Damage 1356 | . . . . . . . 81 169 55 . . . 1051 . . . Kills 6 | . . . . . . . 1 2 . . . . 3 . . . Allies Corrupted . | . . . . . . . . . . . . . . . . . Allies Melted . | . . . . . . . . . . . . . . . . . Intel | -11 -10 -10 -9 -8 -7 -7 -7 -5 -5 -5 -4 -3 -3 -3 -2 -1 ------- Run | Yrd Mat Min Mat Mat Fac Sto Rec Fac Gar Fac Fac Res Arm Lab Res Acc Active Infowar (turns) 495 | . . . . . . . . . . . . . . . 194 301 Optics 495 | . . . . . . . . . . . . . . . 194 301 A.S.S. 489 | . . . . . . . . . . . . . . . 191 298 Jamming 492 | . . . . . . . . . . . . . . . 194 298 Robot Analysis Total 9 | . . 1 1 . 1 . 1 . . . . . . . 3 2 Derelict Logs Recovered 1 | . . 1 . . . . . . . . . . . . . . Drone Launches . | . . . . . . . . . . . . . . . . . Drone Recoveries . | . . . . . . . . . . . . . . . . . Exploration | -11 -10 -10 -9 -8 -7 -7 -7 -5 -5 -5 -4 -3 -3 -3 -2 -1 ------------- Run | Yrd Mat Min Mat Mat Fac Sto Rec Fac Gar Fac Fac Res Arm Lab Res Acc Turns Passed 6757 | 2 60 557 653 249 118 98 381 238 322 132 461 1062 1034 82 487 821 Spaces Moved 4488 | 3 120 478 287 185 97 58 172 155 162 69 260 808 487 108 382 657 Core 463 | 3 120 88 7 85 74 . . . . . . . 12 3 17 54 Treads 510 | . . . 229 100 . . . . . . . . . . 58 123 Legs 2770 | . . 390 51 . 23 58 172 155 162 69 260 808 475 19 17 111 Wheels . | . . . . . . . . . . . . . . . . . Hover 411 | . . . . . . . . . . . . . . 86 214 111 Flight 334 | . . . . . . . . . . . . . . . 76 258 Fastest Speed 34 | 50 50 50 50 50 50 150 150 150 150 150 150 90 50 50 34 34 Average Speed 110 | 50 50 107 151 109 73 150 150 150 150 150 150 102 137 70 71 78 Slowest Speed 200 | 50 50 120 160 160 150 150 150 150 150 150 150 150 140 140 170 200 Overloaded Moves . | . . . . . . . . . . . . . . . . . Propulsion Burnouts . | . . . . . . . . . . . . . . . . . Robots Hopped 5 | . . . . . . . . . . . . . . . 3 2 Potential Cave-ins 5 | . . . . . . . . . . . . . 5 . . . Cave-ins Triggered . | . . . . . . . . . . . . . . . . . Exploration Rate (%) 28 | 2 26 90 31 27 2 17 39 8 35 3 10 28 44 95 17 16 Regions Visited 16 Branch Regions 5 Pre-discovered Areas . | . . . . . . . . . . . . . . . . . Known Exits Taken 1 | . . . . . . . . 1 . . . . . . . . Unknown Exits Taken 14 | 1 1 1 1 1 1 1 1 . . 1 1 1 1 1 1 . Scrap Searched 2 | . . 2 . . . . . . . . . . . . . . Spaces Dug 7 | . . . . . . . . . . . . . 6 1 . . Terrain Destroyed 81 | . . . . . . 2 8 . . . . . 46 1 9 15 Melee . | . . . . . . . . . . . . . . . . . Projectile 81 | . . . . . . 2 8 . . . . . 46 1 9 15 AOE . | . . . . . . . . . . . . . . . . . Terrain Rammed 1 | . . . . . . 1 . . . . . . . . . . Walls Destroyed 1 | . . . . . . 1 . . . . . . . . . . Machines Disabled . | . . . . . . . . . . . . . . . . . Actions | -11 -10 -10 -9 -8 -7 -7 -7 -5 -5 -5 -4 -3 -3 -3 -2 -1 --------- Run | Yrd Mat Min Mat Mat Fac Sto Rec Fac Gar Fac Fac Res Arm Lab Res Acc Total 5520 | 2 119 504 441 230 142 63 280 157 213 85 298 946 638 110 491 801 Wait 366 | . . 7 107 46 45 . 23 . 8 8 11 43 23 . 23 22 Move 4463 | 2 119 477 286 184 96 57 171 155 161 68 259 807 486 107 375 653 Hop 5 | . . . . . . . . . . . . . . . 3 2 Pick Up 1 | . . . . . . . . . . . . . 1 . . . Fast Attach . | . . . . . . . . . . . . . . . . . Attach . | . . . . . . . . . . . . . . . . . Detach . | . . . . . . . . . . . . . . . . . Swap . | . . . . . . . . . . . . . . . . . Drop . | . . . . . . . . . . . . . . . . . Fire 472 | . . 19 45 . 1 3 10 2 19 9 22 76 95 3 61 107 Melee 9 | . . . . . . . . . . . . . . . . 9 Ram 6 | . . . . . . 1 . . . . . . . . 4 1 Kick 42 | . . 1 . . . 2 2 . 4 . 6 20 2 . 3 2 Crush 22 | . . . 3 . . . . . . . . . . . 14 5 Escape Stasis 28 | . . . . . . . . . 20 . . . . . 8 . Rewire 106 | . . . . . . . 74 . 1 . . . 31 . . . Trap . | . . . . . . . . . . . . . . . . . Miscellaneous . | . . . . . . . . . . . . . . . . . Route ------- -11/Scrapyard -10/Materials -10/Mines -9/Materials -8/Materials -7/Factory -7/Storage -7/Recycling -5/Factory -5/Garrison -5/Factory -4/Factory -3/Research -3/Armory -3/Lab -2/Research -1/Access History --------- Turn | Location | Event 1 | -11/Scrapyard | Discovered new exit (range 1) 3 | -11/Scrapyard | Entered Materials 56 | -10/Materials | Discovered new exit (range 7) 63 | -10/Materials | Entered Mines 70 | -10/Mines | Received a Rocket Launcher from a helpful Derelict 70 | -10/Mines | Learned Materials security intel 606 | -10/Mines | Discovered new exit (range 13) 620 | -10/Mines | Entered Materials 744 | -9/Materials | Lost 3 parts (1p2n) 1228 | -9/Materials | Discovered new exit (range 7) 1273 | -9/Materials | Entered another Materials area 1404 | -8/Materials | Met 7R-MNS 1510 | -8/Materials | Discovered new exit (range 5) 1522 | -8/Materials | Entered Factory 1523 | -7/Factory | Caught up to 7R-MNS 1579 | -7/Factory | Discovered new exit (range 16) 1581 | -7/Factory | Garrison activated, responded to threat 1597 | -7/Factory | Took control of 7R-MNS (ally) 1640 | -7/Factory | Entered Storage 1735 | -7/Storage | Used back door to open Recycling access 1735 | -7/Storage | Discovered new exit (range 3) 1738 | -7/Storage | Entered Recycling 2085 | -7/Recycling | Discovered new exit (range 15) 2119 | -7/Recycling | Entered Factory 2119 | -5/Factory | Accompanied by 8 allies 2357 | -5/Factory | Identified exit to Garrison 2357 | -5/Factory | Entered Garrison 2357 | -5/Garrison | Accompanied by 6 allies 2393 | -5/Garrison | Triggered checkpoint 2401 | -5/Garrison | P-70 Sage assimilated allied Serf 4a 2443 | -5/Garrison | Lost 3 allies 2444 | -5/Garrison | Spotted B-75 Beast 2445 | -5/Garrison | Triggered checkpoint 2468 | -5/Garrison | Destroyed B-75 Beast 2517 | -5/Garrison | Destroyed 8 combat bots 2655 | -5/Garrison | Discovered new exit (range 12) 2679 | -5/Garrison | Entered Factory 2679 | -5/Factory | Accompanied by 1 ally 2790 | -5/Factory | Discovered new exit (range 4) 2811 | -5/Factory | Entered another Factory area 2811 | -4/Factory | Accompanied by 1 ally 3137 | -4/Factory | P-70 Sage assimilated allied Angel 4b 3263 | -4/Factory | Discovered new exit (range 7) 3272 | -4/Factory | Entered Research 3634 | -3/Research | Central database locked down 3757 | -3/Research | Spotted B-86 Titan 3768 | -3/Research | Destroyed B-86 Titan 4328 | -3/Research | Discovered new exit (range 7) 4334 | -3/Research | Entered Armory 4335 | -3/Armory | Met VL-GR5, who suggested a friendly competition 4343 | -3/Armory | Took control of VL-GR5 (ally) 4346 | -3/Armory | Found Exp. Targeting Computer 4580 | -3/Armory | Destroyed 9 combat bots 4834 | -3/Armory | First assault squad dispatched 5263 | -3/Armory | Destroyed 15 combat bots 5283 | -3/Armory | High security lockdown imminent 5363 | -3/Armory | High security lockdown engaged 5366 | -3/Armory | Discovered new exit (range 3) 5368 | -3/Armory | Entered Lab 5368 | -3/Lab | Discovered new exit (range 9) 5387 | -3/Lab | Unable to decrypt terminal 5391 | -3/Lab | Detected for breach 5397 | -3/Lab | Confronted by A5 5399 | -3/Lab | Gained access to the hidden lab's interior 5403 | -3/Lab | Took control of A5 5450 | -3/Lab | Entered Research 5473 | -2/Research | Spotted B-90 Cyclops 5494 | -2/Research | Spotted B-90 Cyclops 5824 | -2/Research | Lost 3 parts (2u1w) 5912 | -2/Research | Core integrity fell below 50% 5934 | -2/Research | Discovered new exit (range 11) 5937 | -2/Research | Entered Access 5942 | -1/Access | Lost 7 parts (1p2n1u3w) 6036 | -1/Access | Lost 5 parts (1p3n1w) 6124 | -1/Access | Garrison activated, responded to threat 6223 | -1/Access | Destroyed 7 combat bots 6314 | -1/Access | Lost 3 parts (2u1w) 6437 | -1/Access | First assault squad dispatched 6534 | -1/Access | Core integrity fell below 50% 6550 | -1/Access | Garrison activated, responded to threat 6583 | -1/Access | Core integrity fell below 20% 6615 | -1/Access | Lost 11 parts (2p4n1u4w) 6672 | -1/Access | Garrison activated, responded to threat 6724 | -1/Access | Intercept squad dispatched 6754 | -1/Access | Spotted Tracker 6755 | -1/Access | Spotted Tracker 6758 | -1/Access | Destroyed by Tracker with Linked Autogun Last Messages --------------- 06666_ S-43 Plague destroyed. 06669_ K-01 Serf collects debris. 06672_ R-10 Processor calls for garrison support. 06672_ ALERT: Activating Garrison Access A001. 06674_ System corrupted: Energy discharge (-83). 06675_ Destroyed Com. Wheel. 06678_ K-01 Serf collects debris. 06724_ ALERT: Reliable intel has pinpointed LRC-V3, intercept squad en route. 06739_ O-32 Director: "IFF HANDSHAKE FAILED. SECURING TERMINAL." 06744_ ALERT: Hostiles spotted, dispatching reinforcements to Terminal A008. 06752_ System corrupted: Heat flow error (+131). Tracker: "THREAT CONFIRMED. DEPLOY COMBAT PROGRAMMER." 06754_ Imp. Antigrav System temporarily disabled. Tracker: "THREAT CONFIRMED. DEPLOY COMBAT PROGRAMMER." 06756_ Hyperwave Decoder disabled. 06756_ Imp. Antigrav System destroyed. 06756_ Door malfunctions. 06757_ Imp. Antigrav System temporarily disabled. Map ----- +----------------------------------------------------+ | ?????????????????????????????????????? | | ????????????????????????????????????? | | ?????????????????????????????????????? | | ?????????????????????????????????????? | | ???????????????????????????????????????########## | | ????????????????????????????????????????????????# | | ????????????????????????????????????????????????# | | ????????????????????????????????????????????????# | | ????????????????????????????????????????????????# | | ????????????????????????????????????????????????# | | ????????????????????????????????????????????????# | | ????????????????????????????????????????????????# | | ?????????????????# ?????????????????????????????# | | ?????????????????# ????????????????????????????## | | ?????????????????# ?????????????????????????????? | | ?????????????????? ????????????????????????????? | | ??????????????????? ?????###????????????????????? | | ???????????????????? ???? #??????????#+#???????? | | ?????????????????##+#s##### #??????????# ######### | | ?????????????????? # #??????????# | | ??????????????????? s # #??????????# | | ???????????????????""" # #???######## | | ???????????????????""" # #???# | | ??????????????????""""" # ##### | | ??????????????????""""" / | | ??????????????????""""" p## | | ?????????????? ## ####### | | ?????????????# ## [[ [ ####+###?????? | | ?????????????# ## [[ #????????????? | | ?????????????# ## #????????????? | | ?????????????# ] + #????????????? | | ?????????????############### ##????????????? | | ???????????????????????????# #?????????????? | | ???????????????????????????# #?????????????? | | ???????????????????????????#########?????????????? | | ?????????????????????????????????????????????????? | | ?????????????????????????????????????????????????? | | ?????????????????????????????????????????????????? | | ?????????????????????????????????????????????????? | | | | | | | | | | | | | | | | | | | | | | | +----------------------------------------------------+ Best States ------------- Heat Dissipation 198 Coolant Potential 120 Energy Generation 86 Energy Capacity 1240 Matter Stores 250 Matter Capacity 250 Sight Range 22 Robot Scan Range 20 Terrain Scan Density 10 Jamming Range 16 Power Amplification 40 Additional Mass Support 25 Base Temperature (-) 400 EM Shielding 3 Corruption Block 40 Armor Coverage 1200 Resistance: KI 55 Resistance: TH 50 Resistance: EX 50 Resistance: EM 75 Resistance: I 50 Resistance: S 50 Resistance: P 50 Core Shielding 40 Propulsion Shielding 90 Utility Shielding 90 Weapon Shielding 90 Weapon Cycling 25 Melee Speed Boost 20 Phase Shifting 15 Evasion (%) 70 Targeting Accuracy 32 Melee Accuracy 8 Target Analysis 8 Recoil Reduction 4 Energy Filtering 50 Particle Charging 50 Kinecelleration 40 Offensive Hacking 16 Defensive Hacking 16 Item Schematics ----------------- None Robot Schematics ------------------ None Fabricated ------------ Nothing Repaired ---------- Nothing Studied --------- Phase Gun | -3/Research | Hacked Alien Tech Used ----------------- None Achievements -------------- None Challenges ------------ None Polymind | -11 -10 -10 -9 -8 -7 -7 -7 -5 -5 -5 -4 -3 -3 -3 -2 -1 ---------- Run | Yrd Mat Min Mat Mat Fac Sto Rec Fac Gar Fac Fac Res Arm Lab Res Acc Hosts 13 | . . 1 1 . 1 . . . . . . . 1 1 3 5 Combat Hostiles 11 | . . 1 1 . . . . . . . . . . 1 3 5 Allies 2 | . . . . . 1 . . . . . . . 1 . . . Unique Host Classes 9 | . . 1 1 . . . . . . . . . 1 1 3 2 Average Host Suspicion 88 | . . 100 91 36 47 55 76 44 89 74 90 97 98 63 84 97 Unsuspicious Activity 564 | . . . 106 . 66 . . . . . . . 66 120 206 . Returns to Shadow 1 | . . . . . . . . . . . . . . . 1 . Fuzzy Dispatches 11 | . . . . . . . . . . . 1 4 2 . 2 2 Protomatter Created 3913 | . . 27 61 39 78 16 49 15 301 230 218 502 1384 . 473 520 Used 1297 | . . 30 23 . 132 . . . . . . . 132 240 302 438 Decayed 1783 | . . . . 20 . . . . . . 147 523 965 . 59 69 Highest Spend 240 | . . 30 23 . 132 . . . . . . . 132 240 192 192 Top 5 Hosts by Kills: 7R-MNS (-7/Factory: 85) VL-GR5 (-3/Armory: 70) H-81 Overseer (-1/Access: 15) Y-45 Defender (-9/Materials: 9) H-88 Terminator (-2/Research: 7) Game ------ Seed ActiveInsulationTube Manual? 0 Play Time 01:04:42 Cumulative 1292.9 hours Start 2026.03.30 @ 21:22:58 End 2026.03.31 @ 14:04:28 Sessions 3 Manual Loads 0 Difficulty Rogue Special Mode Winter2022/Polymind Game No. 1586 Rogue 1302 Adventurer 124 Explorer 160 Win Type - Total 63 Types 49/0/8/4/1/0/0/1/0/0 Lore% 93 Gallery% 83 Achievement% 70 Wizard Run 0 Options --------- Layout 0 ASCII 0 Keyboard 1 Movement Numpad Keybinds 0 Fullscreen 2 Font 18/X11 Map View 76x50 Zoom Use 2% Tactical HUD 1 Map Filters NONE Filters NONE Steam 1 RUN: 0d330259-c7c2-4b87-b878-d36d6ed17dc1